bitfinex/quotes_ETHUSD_20250517
["timestamp","ask_amount","ask_price","bid_price","bid_amount"]
[1747507875528,4.04815995,2470.3,2469.8,4.80873]
[1747507876031,4.04815995,2470.3,2469.8,4.80880619]
[1747507876032,4.04817625,2470.3,2469.8,4.80880619]
[1747507877505,4.0482818,2470.2,2469.8,0.7599]
[1747507878089,0.03426479,2470.1,2469.5,0.7599]
[1747507878321,8.0,2470.0,2469.5,0.7599]
[1747507878623,4.04934681,2469.6,2469.1,4.04995301]
[1747507878829,4.04948827,2469.5,2469.0,0.7599]
[1747507879027,0.4253,2469.8,2468.8,0.7977]
[1747507879028,4.04996264,2469.2,2468.8,0.7977]
[1747507879249,4.0500427,2469.2,2468.8,0.7977]
[1747507879523,8.0,2469.3,2468.8,0.7977]
[1747507880120,12.04982949,2469.3,2468.8,4.84822864]
[1747507880725,8.0,2469.3,2468.8,4.84822864]
[1747507880925,7.833,2469.4,2468.8,6.18388376]
[1747507881219,19.88226635,2469.6,2469.3,0.7977]
[1747507881421,8.0,2469.5,2469.3,0.7977]
[1747507881815,8.0,2469.5,2469.1,4.8476731]
[1747507882122,8.0,2469.5,2469.1,0.7977]
[1747507882123,4.04941766,2469.5,2469.1,0.7977]
[1747507883832,8.0,2469.7,2469.3,4.04960954]
[1747507884131,8.0,2469.7,2469.4,4.04955506]
[1747507884599,8.0,2469.8,2469.3,4.04972583]
[1747507884929,7.834,2470.2,2469.4,0.7506]
[1747507885113,11.88228751,2470.2,2469.7,4.04895178]
[1747507885319,8.0,2470.1,2469.7,4.04895178]
[1747507885707,12.0484993,2470.1,2469.6,11.88316959]
[1747507885919,4.04858896,2470.0,2469.4,0.7506]
[1747507886224,0.03426479,2470.0,2469.4,8.5846]
[1747507886433,2.39307584,2470.1,2469.4,0.7506]
[1747507886740,4.04910262,2469.7,2469.4,0.7506]
[1747507887609,4.04924379,2469.6,2469.4,0.7506]
[1747507888825,0.4253,2469.9,2469.1,9.27516721]
[1747507888826,4.04947313,2469.5,2469.1,9.27516721]
[1747507889023,4.04933375,2469.6,2469.1,5.49117653]
[1747507889200,4.04950552,2469.5,2469.1,8.6643]
[1747507889403,4.0496078,2469.4,2469.1,0.8303]
[1747507891142,4.0496078,2469.4,2469.0,7.834]
[1747507891342,4.04977598,2469.3,2469.0,7.834]
[1747507891541,4.04977598,2469.3,2468.9,18.3153]
[1747507891745,4.04977598,2469.3,2468.9,26.1503]
[1747507892351,4.04977598,2469.3,2468.9,30.20065657]
[1747507892752,4.04993223,2469.2,2468.9,26.1503]
[1747507892953,4.0498947,2469.2,2468.9,7.835]
[1747507893117,4.05024986,2469.0,2468.7,1.49696667]
[1747507893319,0.03426479,2468.9,2468.7,0.66666667]
[1747507893514,8.0,2469.0,2468.7,0.66666667]
[1747507894042,12.050245,2469.0,2468.7,0.66666667]
[1747507894253,8.0,2469.0,2468.7,0.66666667]
[1747507894418,12.05024435,2469.0,2468.7,0.66666667]
[1747507894832,8.0,2469.0,2468.7,0.66666667]
[1747507895114,12.05030859,2469.0,2468.7,0.66666667]
[1747507895320,4.05027876,2469.0,2468.7,0.66666667]
[1747507895521,7.833,2469.2,2468.8,4.05044196]
[1747507895857,8.0,2469.1,2468.8,4.05044196]
[1747507896628,8.0,2469.1,2468.8,4.05048378]
[1747507896944,0.4253,2469.4,2468.8,4.05048378]
[1747507896945,0.4253,2469.4,2469.1,4.05003681]
[1747507897265,8.0,2469.3,2468.8,0.7988]
[1747507897433,4.05002571,2469.2,2468.8,0.7988]
[1747507897772,4.0500625,2469.1,2468.7,5.76673889]
[1747507898061,4.04998207,2469.2,2468.7,5.76673889]
[1747507898468,4.04998207,2469.2,2468.8,0.38574064]
[1747507899865,4.04998207,2469.2,2468.7,5.76673889]
[1747507900043,12.04980401,2469.3,2468.8,4.05051577]
[1747507900367,12.04980401,2469.3,2468.8,5.89572124]
[1747507900660,4.04995186,2469.2,2468.8,1.84520547]
[1747507902375,4.0500645,2469.1,2468.8,1.84520547]
[1747507902879,4.05024506,2469.0,2468.7,0.66666667]
[1747507903076,4.05014505,2469.1,2468.7,4.71735695]
[1747507903262,12.05055087,2468.8,2468.7,0.66666667]
[1747507903468,19.88255087,2468.8,2468.7,0.66666667]
[1747507903646,15.832,2468.8,2468.7,0.66666667]
[1747507903847,19.88255087,2468.8,2468.7,0.66666667]
[1747507904780,8.0,2468.8,2468.7,0.66666667]
[1747507904959,12.05055087,2468.8,2468.7,0.66666667]
[1747507906381,14.4438315,2468.8,2468.7,0.66666667]
[1747507906675,14.4438315,2468.8,2468.7,1.0535514]
[1747507908189,14.4438315,2468.8,2468.7,0.61666667]
[1747507908684,7.832,2468.9,2468.7,1.37516667]
[1747507909556,12.05023985,2469.0,2468.7,1.37516667]
[1747507909768,8.0,2468.9,2468.8,0.38709555]
[1747507910292,12.05038681,2468.9,2468.8,0.38709555]
[1747507910857,4.47585087,2468.8,2468.7,0.61666667]
[1747507911079,6.86911354,2468.8,2468.7,0.61666667]
[1747507911998,19.88255087,2468.8,2468.7,0.61666667]
[1747507912875,7.832,2468.9,2468.7,1.37516667]
[1747507913693,8.0,2469.0,2468.7,1.37516667]
[1747507913993,15.832,2469.0,2468.7,1.37516667]
[1747507914165,19.88222646,2469.0,2468.7,1.37516667]
[1747507915897,8.2563,2469.6,2468.7,1.91776284]
[1747507916096,4.04932828,2469.6,2469.2,0.7945]
[1747507916394,4.04956836,2469.4,2469.2,0.7945]
[1747507918425,12.04949839,2469.5,2469.2,0.7945]
[1747507919314,4.04968147,2469.4,2469.2,0.7945]
[1747507919621,7.831,2469.7,2469.2,0.7945]
[1747507919622,4.049317,2469.6,2469.2,0.7945]
[1747507919825,15.83,2469.7,2469.2,5.73375342]
[1747507920019,4.04925046,2469.6,2469.2,5.73375342]
[1747507920521,12.04947446,2469.5,2469.3,0.22709912]
[1747507920712,12.04956669,2469.4,2469.3,0.22709912]
[1747507920889,12.04956669,2469.4,2469.3,0.61465648]
[1747507921626,8.0,2469.4,2469.3,0.61465648]
[1747507922021,4.04949738,2469.5,2469.3,0.61465648]
[1747507922022,4.04940957,2469.5,2469.3,0.61465648]
[1747507922221,8.0,2469.5,2469.3,0.61465648]
[1747507922726,12.04948413,2469.5,2469.3,0.61465648]
[1747507923025,4.04956669,2469.4,2469.3,0.38755736]
[1747507923250,4.04973069,2469.3,2469.0,8.643]
[1747507923399,4.05000232,2469.2,2469.0,8.643]
[1747507923727,12.47454521,2469.6,2469.1,0.22709463]
[1747507923926,4.04985552,2469.3,2469.1,0.22709463]
[1747507924307,4.04985552,2469.3,2469.0,8.643]
[1747507924529,4.04985552,2469.3,2469.2,0.38748729]
[1747507925042,12.04985552,2469.3,2469.2,0.38748729]
[1747507926459,4.05038681,2468.9,2468.8,0.8002]
[1747507926664,4.05038681,2468.9,2468.8,1.02729893]
[1747507927221,4.05038681,2468.9,2468.8,0.22709893]
[1747507927751,13.32001615,2468.9,2468.8,0.61465375]
[1747507927954,13.28575136,2468.9,2468.8,0.38755482]
[1747507929322,12.05055087,2468.8,2468.7,0.61666667]
[1747507930556,12.60055087,2468.8,2468.7,0.61666667]
[1747507930758,13.96638708,2468.8,2468.7,0.61666667]
[1747507933869,29.62638708,2468.8,2468.7,0.61666667]
[1747507935375,32.62638708,2468.8,2468.7,0.61666667]
[1747507936079,16.96638708,2468.8,2468.7,0.61666667]
[1747507936253,32.62838708,2468.8,2468.7,0.61666667]
[1747507938970,8.0,2468.1,2467.6,0.8244]
[1747507939170,12.05235644,2467.7,2467.6,0.8244]
[1747507941481,12.05235644,2467.7,2467.2,7.833]
[1747507941482,4.05302244,2467.3,2467.2,0.8147]
[1747507942082,4.05350628,2467.0,2466.9,1.29912906]
[1747507942775,8.0,2467.3,2466.9,1.29912906]
[1747507942979,12.05320871,2467.2,2466.9,1.29912906]
[1747507943183,8.0,2467.2,2466.9,1.29912906]
[1747507943390,4.05350628,2467.0,2466.9,1.29912906]
[1747507943587,12.05324922,2467.2,2466.9,0.8147]
[1747507943791,19.88124708,2467.2,2466.9,0.8147]
[1747507945437,15.828,2467.2,2466.9,4.86836002]
[1747507945640,0.4253,2467.7,2466.9,4.86836002]
[1747507945641,7.829,2467.7,2467.0,4.8681493]
[1747507945822,4.0525317,2467.6,2467.1,4.0532534]
[1747507946012,4.0525317,2467.6,2467.2,0.8147]
[1747507946211,3.0,2467.5,2467.2,0.8147]
[1747507946409,3.0,2467.5,2467.2,4.86787661]
[1747507947125,7.05272094,2467.5,2467.2,0.8147]
[1747507947326,4.05301341,2467.3,2467.2,0.8147]
[1747507947522,7.05276784,2467.5,2467.2,0.8147]
[1747507947924,4.05276784,2467.5,2467.2,0.8147]
[1747507948549,8.0,2467.6,2467.2,5.73215443]
[1747507949050,12.05259682,2467.6,2467.4,0.8147]
[1747507949201,8.0,2467.6,2467.2,0.8147]
[1747507949405,4.05301341,2467.3,2467.2,0.8147]
[1747507949720,8.0,2467.6,2466.9,0.8147]
[1747507949721,4.05325164,2467.2,2466.9,0.8147]
[1747507950251,4.05350628,2467.0,2466.7,2.06309575]
[1747507950422,4.0537614,2466.9,2466.7,0.8147]
[1747507950845,12.05360371,2467.0,2466.7,0.8147]
[1747507951147,3.0,2466.9,2466.7,0.8147]
[1747507951446,7.828,2467.0,2466.8,4.05383492]
[1747507952252,11.88152114,2467.0,2466.7,0.8147]
[1747507953138,7.828,2467.0,2466.7,0.8147]
[1747507953660,11.88150742,2467.0,2466.7,0.8147]
[1747507953934,7.828,2467.0,2466.7,4.8686254]
[1747507954510,7.828,2467.0,2466.7,0.8147]
[1747507957855,4.47805345,2467.5,2466.7,1.70700369]
[1747507958152,4.05223147,2467.8,2467.4,4.87084238]
[1747507958454,4.05204472,2467.9,2467.4,4.8707474]
[1747507958651,8.0,2467.8,2467.4,4.8707474]
[1747507959322,8.0,2467.8,2467.5,4.0526807]
[1747507959538,8.0,2467.8,2467.4,0.818]
[1747507959539,8.0,2467.8,2467.4,4.87081455]
[1747507959721,4.0520504,2467.9,2467.4,4.87076429]
[1747507959722,11.88009758,2467.9,2467.4,4.87076429]
[1747507959916,8.0,2467.8,2467.4,4.87076429]
[1747507960356,8.0,2467.8,2467.1,0.7821]
[1747507960531,4.05317769,2467.2,2467.1,0.7821]
[1747507960863,11.880101,2467.3,2467.1,0.7821]
[1747507961154,4.05317769,2467.2,2467.1,0.7821]
[1747507961332,7.827,2467.3,2467.1,0.7821]
[1747507961333,11.88008411,2467.3,2467.1,0.7821]
[1747507962258,12.05270642,2467.5,2467.1,0.7821]
[1747507962460,4.05291878,2467.4,2467.1,0.7821]
[1747507963752,4.05291878,2467.4,2467.2,0.38740065]
[1747507964567,4.05284915,2467.4,2467.2,0.38740065]
[1747507964875,4.05301341,2467.3,2467.2,0.38740065]
[1747507965074,4.05114592,2467.4,2467.2,0.38740065]
[1747507965571,12.05275288,2467.5,2467.2,0.38740065]
[1747507965771,4.05286148,2467.4,2467.2,0.38740065]
[1747507966846,4.05286148,2467.4,2467.3,0.38740065]
[1747507967046,19.87976494,2467.5,2467.3,0.38740065]
[1747507967884,4.05284915,2467.4,2467.3,0.38740065]
[1747507968184,4.05284915,2467.4,2467.2,0.38740065]
[1747507968551,15.827,2467.5,2467.2,0.38740065]
[1747507968552,12.05278625,2467.5,2467.2,0.38740065]
[1747507968881,4.05284915,2467.4,2467.3,0.22725994]
[1747507969575,12.0527798,2467.5,2467.3,0.22725994]
[1747507969967,12.0527798,2467.5,2467.1,0.7821]
[1747507971071,4.0528547,2467.4,2467.1,0.7821]
[1747507971274,4.0528547,2467.4,2467.2,0.22734051]
[1747507971880,4.0528547,2467.4,2467.3,0.22734051]
[1747507972795,4.0528547,2467.4,2467.2,0.22734051]
[1747507972995,4.0528547,2467.4,2467.3,0.38801701]
[1747507973196,4.08711949,2467.4,2467.3,0.38801701]
[1747507973492,14.52623255,2467.4,2467.3,0.38801701]
[1747507973699,14.49196776,2467.4,2467.3,0.38801701]
[1747507974062,14.91726776,2467.4,2467.3,0.38801701]
[1747507974594,14.91726776,2467.4,2466.6,0.8153]
[1747507974595,4.05334198,2467.1,2466.6,0.8153]
[1747507974901,4.05392691,2466.8,2466.7,0.22739569]
[1747507975393,12.05374698,2466.9,2466.7,0.22739569]
[1747507975699,12.05367826,2466.9,2466.7,0.22739569]
[1747507975894,12.05367826,2466.9,2466.8,0.38800638]
[1747507978514,13.82092048,2466.9,2466.8,0.38800638]
[1747507978698,4.05390753,2466.8,2466.4,0.48442906]
[1747507979009,4.05403605,2466.7,2466.4,0.48442906]
[1747507979188,4.05403605,2466.7,2466.5,0.22730101]
[1747507979979,12.05403605,2466.7,2466.6,0.61518516]
[1747507981013,8.0,2466.7,2466.6,0.61518516]
[1747507981215,8.4253,2467.5,2466.7,0.8325]
[1747507981414,11.87844724,2467.1,2466.7,0.8325]
[1747507981714,11.87839817,2467.1,2466.7,0.8325]
[1747507982098,4.05360339,2467.0,2466.7,0.8325]
[1747507982309,4.05360339,2467.0,2466.8,0.22730101]
[1747507982616,11.87846851,2467.1,2466.9,0.38781611]
[1747507983401,4.05346851,2467.1,2466.9,0.38781611]
[1747507983607,8.4253,2467.5,2466.9,0.38781611]
[1747507983786,12.05314944,2467.3,2467.0,1.04791264]
[1747507983982,8.0,2467.3,2467.0,1.04791264]
[1747507984188,4.05317792,2467.2,2467.1,0.38781611]
[1747507984387,4.05317792,2467.2,2467.1,0.61502875]
[1747507990122,12.05311163,2467.3,2467.1,0.61502875]
[1747507990321,11.87835209,2467.8,2467.1,4.66837049]
[1747507990322,8.0,2467.7,2467.1,4.66837049]
[1747507990522,4.05252066,2467.6,2467.1,1.1639358]
[1747507990728,4.05291443,2467.4,2467.1,1.1639358]
[1747507991029,4.05291443,2467.4,2467.2,0.61502875]
[1747507991437,4.05301341,2467.3,2467.2,0.61502875]
[1747507991591,4.05301341,2467.3,2467.2,0.38781611]
[1747507992435,4.05293637,2467.4,2467.2,0.38781611]
[1747507992838,4.05293637,2467.4,2467.1,0.38781611]
[1747507993148,4.05293637,2467.4,2467.2,0.22732509]
[1747507994050,4.05293637,2467.4,2467.1,0.38781611]
[1747507994528,4.05302545,2467.3,2467.2,0.38781611]
[1747507994727,4.05292954,2467.4,2467.2,0.38781611]
[1747507995630,15.05279,2467.5,2467.2,0.38781611]
[1747507995829,4.05286318,2467.4,2467.2,0.38781611]
[1747507996051,4.05286318,2467.4,2467.3,0.61514411]
[1747507996749,15.05277284,2467.5,2467.3,0.61514411]
[1747507997251,15.05277284,2467.5,2467.1,4.05331287]
[1747507997449,15.05277284,2467.5,2467.1,1.72380654]
[1747507997838,11.0,2467.5,2467.1,5.77714125]
[1747507998018,12.05268848,2467.5,2467.2,0.22732446]
[1747507998654,12.05268848,2467.5,2467.3,0.22732446]
[1747507999421,12.05268848,2467.5,2467.1,1.72380654]
[1747507999632,12.05268848,2467.5,2467.2,1.44239123]
[1747507999831,4.05284925,2467.4,2467.2,1.44239123]
[1747508000051,4.05277535,2467.5,2467.2,1.83035816]
[1747508001157,4.05277535,2467.5,2467.3,0.61528261]
[1747508001756,12.05262394,2467.6,2467.3,0.61528261]
[1747508002054,12.05258501,2467.6,2467.3,0.38796693]
[1747508002454,12.05258501,2467.6,2467.3,0.97632277]
[1747508002634,4.05269861,2467.5,2467.4,0.2272949]
[1747508002833,12.05259135,2467.6,2467.4,0.61526183]
[1747508003356,8.0,2467.6,2467.4,0.38796693]
[1747508003657,4.05231512,2467.8,2467.4,1.18456693]
[1747508003823,4.05219223,2467.8,2467.5,0.38796693]
[1747508004021,4.05251825,2467.7,2467.5,0.38796693]
[1747508004244,4.05252066,2467.6,2467.5,0.38796693]
[1747508004745,4.05252066,2467.6,2467.5,0.6152382]
[1747508005822,4.47782066,2467.6,2467.5,0.6152382]
[1747508006428,4.05252066,2467.6,2467.5,0.6152382]
[1747508006655,4.05244452,2467.7,2467.5,0.6152382]
[1747508006859,4.05244452,2467.7,2467.5,0.38796693]
[1747508007578,4.05244452,2467.7,2467.5,1.21216693]
[1747508008253,4.05244452,2467.7,2467.5,0.8242]
[1747508009479,4.05252066,2467.6,2467.3,0.8242]
[1747508009647,4.05252066,2467.6,2467.4,0.38808393]
[1747508009983,4.05252066,2467.6,2467.5,0.22741021]
[1747508010998,4.05252066,2467.6,2467.5,0.61549414]
[1747508013574,4.05226342,2467.8,2467.5,0.61549414]
[1747508013881,12.0523697,2467.7,2467.5,0.61549414]
[1747508014245,12.0523697,2467.7,2467.6,0.22741021]
[1747508015677,12.0523697,2467.7,2467.6,0.61549414]
[1747508016476,8.0,2467.7,2467.6,0.61549414]
[1747508016680,4.05137138,2468.3,2467.7,0.8242]
[1747508016883,4.05166316,2468.2,2467.7,0.8242]
[1747508017043,8.2403,2468.4,2467.8,0.54921396]
[1747508017258,4.05152673,2468.3,2467.8,4.27953536]
[1747508017462,8.0,2468.2,2467.8,4.27953536]
[1747508017791,12.05155539,2468.2,2467.9,0.22741021]
[1747508017993,3.0,2468.1,2467.9,4.66750885]
[1747508018192,3.0,2468.1,2468.0,5.74802725]
[1747508018894,8.0,2468.4,2468.0,5.97543746]
[1747508019408,4.05029223,2469.0,2468.5,4.05092418]
[1747508019565,12.28921876,2469.2,2468.7,4.05063673]
[1747508019765,4.05020154,2469.1,2468.6,4.82689256]
[1747508019965,8.0,2469.0,2468.6,2.44560711]
[1747508020196,12.05023965,2469.0,2468.6,2.44560711]
[1747508020588,4.05056474,2468.8,2468.6,0.7761]
[1747508021289,4.05047692,2468.9,2468.7,0.38808393]
[1747508021675,4.05055087,2468.8,2468.7,0.38808393]
[1747508022291,4.05047897,2468.9,2468.7,0.38808393]
[1747508022471,4.05028422,2469.0,2468.7,0.38808393]
[1747508022472,4.05055087,2468.8,2468.7,0.38808393]
[1747508022802,4.05028422,2469.0,2468.7,0.38808393]
[1747508022803,4.05023051,2469.0,2468.7,0.38808393]
[1747508023110,4.05098398,2468.6,2468.3,0.48442906]
[1747508023403,4.05104959,2468.5,2468.3,0.48442906]
[1747508024115,4.05094304,2468.6,2468.3,0.48442906]
[1747508024300,4.05075427,2468.7,2468.3,0.48442906]
[1747508024487,4.05075427,2468.7,2468.4,0.38651316]
[1747508025317,4.05075427,2468.7,2468.4,1.30289711]
[1747508025808,4.05063913,2468.8,2468.4,1.30289711]
[1747508026911,4.05013366,2469.1,2468.6,4.05079762]
[1747508028209,4.0502307,2469.0,2468.6,4.05079762]
[1747508028506,4.0502307,2469.0,2468.6,5.07413169]
[1747508028893,4.05042683,2468.9,2468.6,1.02333407]
[1747508029071,4.05030041,2469.0,2468.5,4.87952058]
[1747508029406,19.85892709,2469.2,2468.5,4.87952058]
[1747508029609,4.05015645,2469.1,2468.6,4.05082608]
[1747508029814,4.05015645,2469.1,2468.6,5.07415046]
[1747508030022,4.0494308,2469.5,2468.9,4.05027094]
[1747508030215,8.0,2469.1,2468.7,0.8285]
[1747508030386,12.04998654,2469.2,2468.7,12.69320862]
[1747508030589,12.04998654,2469.2,2468.7,14.4699639]
[1747508030806,4.05005918,2469.1,2468.7,10.41925528]
[1747508031015,4.05005918,2469.1,2468.7,14.46996891]
[1747508031203,12.04997405,2469.2,2468.7,14.46996891]
[1747508031514,4.05008677,2469.1,2468.7,14.46996891]
[1747508031822,12.04998106,2469.2,2468.7,14.46996891]
[1747508032327,8.0,2469.2,2468.8,4.05042226]
[1747508032525,8.0,2469.2,2468.8,4.05051524]
[1747508032724,4.04985444,2469.3,2468.7,14.46987666]
[1747508032725,8.0,2469.3,2468.7,14.46990125]
[1747508033035,12.04981194,2469.3,2468.8,1.44699013]
[1747508033245,12.04981194,2469.3,2468.8,5.49738802]
[1747508033551,8.0,2469.3,2468.8,1.44699013]
[1747508033829,4.05045853,2468.9,2468.7,0.8285]
[1747508034038,4.05035176,2469.0,2468.7,0.8285]
[1747508034326,0.03426479,2469.0,2468.7,0.8285]
[1747508034513,4.05045539,2468.9,2468.7,0.8285]
[1747508034831,4.05030804,2469.0,2468.7,0.8285]
[1747508036928,4.05030804,2469.0,2468.6,7.814]
[1747508036929,4.0504048,2468.9,2468.6,7.814]
[1747508038063,4.0504048,2468.9,2468.2,7.808]
[1747508038064,4.05103199,2468.6,2468.2,0.7682]
[1747508038359,0.45956479,2468.8,2468.2,0.7682]
[1747508038360,4.05104827,2468.5,2468.2,0.7682]
[1747508038670,4.05121713,2468.4,2468.2,0.7682]
[1747508038850,4.05137138,2468.3,2468.1,0.48442906]
[1747508039532,4.05137138,2468.3,2468.0,8.5653]
[1747508039854,4.05160935,2468.2,2467.8,0.7523]
[1747508040054,4.05160935,2468.2,2467.9,0.48045749]
[1747508040366,4.05172196,2468.1,2467.9,0.48045749]
[1747508040552,4.05231679,2467.8,2467.6,0.48442906]
[1747508041116,12.05235644,2467.7,2467.6,0.48442906]
[1747508041520,8.0,2467.7,2467.6,0.48442906]
[1747508042562,12.05235644,2467.7,2467.6,0.48442906]
[1747508042766,12.05235644,2467.7,2467.4,0.64350334]
[1747508042767,12.05235644,2467.7,2467.2,12.61140831]
[1747508042969,12.05235644,2467.7,2467.3,1.26114083]
[1747508044071,12.05235644,2467.7,2467.4,0.386441]
[1747508045476,12.05243721,2467.7,2467.4,0.386441]
[1747508045979,4.05262354,2467.6,2467.3,1.26114083]
[1747508046170,4.05262354,2467.6,2467.2,8.5583]
[1747508046370,4.05262354,2467.6,2467.2,9.8679026]
[1747508046685,4.05262354,2467.6,2467.3,0.22657139]
[1747508047785,4.05262354,2467.6,2467.2,9.8679026]
[1747508048082,8.0,2467.7,2467.2,9.8679026]
[1747508048248,8.0,2467.7,2467.3,4.05291963]
[1747508048448,8.0,2467.7,2467.3,5.85031904]
[1747508048849,12.05237098,2467.7,2467.3,5.85031904]
[1747508049155,12.0523599,2467.7,2467.4,0.38639111]
[1747508049375,4.05257396,2467.6,2467.4,0.38639111]
[1747508050774,4.05257396,2467.6,2467.2,8.5583]
[1747508050958,4.05257396,2467.6,2467.2,9.86790226]
[1747508051274,12.05242547,2467.7,2467.2,13.92098613]
[1747508051584,4.05260997,2467.6,2467.2,9.86790226]
[1747508051794,4.05285126,2467.4,2467.2,7.806]
[1747508052679,4.05277546,2467.5,2467.2,7.806]
[1747508054298,0.4253,2467.9,2467.2,7.806]
[1747508054464,7.805,2468.0,2467.6,4.05244096]
[1747508055064,11.85690347,2468.0,2467.5,4.05259571]
[1747508055264,11.85690347,2468.0,2467.6,0.8892343]
[1747508055470,7.805,2468.0,2467.4,8.596]
[1747508055801,4.05242251,2467.7,2467.4,8.596]
[1747508056299,4.05252096,2467.6,2467.4,8.596]
[1747508057101,4.05238722,2467.7,2467.4,8.596]
[1747508057521,4.05254889,2467.6,2467.4,7.809]
[1747508058017,4.05245037,2467.7,2467.4,7.809]
[1747508058170,4.0525264,2467.6,2467.4,7.809]
[1747508058375,4.0525264,2467.6,2467.2,4.84016003]
[1747508058597,4.0525264,2467.6,2467.2,13.58696428]
[1747508059211,4.05245547,2467.7,2467.2,13.58696428]
[1747508059511,4.05254565,2467.6,2467.2,13.58696428]
[1747508059711,4.05245354,2467.7,2467.3,0.22625493]
[1747508059869,8.0,2467.9,2467.4,0.04052537]
[1747508060074,4.05219947,2467.8,2467.4,5.07144877]
[1747508060476,12.05212036,2467.9,2467.4,5.07144877]
[1747508060675,4.05220561,2467.8,2467.4,5.07144877]
[1747508060876,12.05209475,2467.9,2467.5,4.05267779]
[1747508061174,8.0,2468.3,2467.7,4.05223838]
[1747508061375,8.0,2468.3,2467.7,12.34921443]
[1747508061376,8.0,2468.1,2467.7,12.34921443]
[1747508061626,12.0517242,2468.1,2467.7,12.34921443]
[1747508062202,4.05186281,2468.1,2467.7,8.29697605]
[1747508062435,12.05186281,2468.1,2467.7,8.29697605]
[1747508062624,12.05186281,2468.1,2467.8,0.38648331]
[1747508064022,12.05186281,2468.1,2467.7,8.29697605]
[1747508064228,8.0,2468.2,2467.9,0.787]
[1747508064793,8.0,2468.2,2467.9,4.83900666]
[1747508065132,7.803,2468.3,2467.9,4.83900666]
[1747508065907,7.803,2468.3,2468.0,0.22678215]
[1747508066103,11.8543906,2468.3,2468.0,0.22678215]
[1747508066335,4.0513906,2468.3,2468.0,0.61380765]
[1747508066494,4.0513906,2468.3,2468.0,0.3870255]
[1747508067751,4.0513906,2468.3,2468.1,0.3870255]
[1747508067903,8.4253,2468.6,2468.2,4.05143821]
[1747508067904,8.0,2468.6,2468.2,4.05143821]
[1747508068110,7.802,2468.5,2468.3,0.787]
[1747508068311,11.8530688,2468.5,2468.3,0.787]
[1747508068519,7.802,2468.5,2468.3,0.787]
[1747508068729,4.05104593,2468.5,2468.3,0.787]
[1747508069039,7.801,2468.6,2468.3,0.787]
[1747508069040,4.05096525,2468.6,2468.3,0.787]
[1747508069246,4.05096525,2468.6,2468.4,0.3870255]
[1747508069624,12.05104314,2468.5,2468.4,0.3870255]
[1747508074051,4.05133126,2468.4,2468.2,0.3870255]
[1747508074450,4.05137138,2468.3,2468.2,0.3870255]
[1747508074817,4.05130264,2468.4,2468.2,0.3870255]
[1747508075218,4.05137138,2468.3,2468.2,0.3870255]
[1747508075967,14.12120357,2468.3,2468.2,0.61394411]
[1747508076131,14.08693878,2468.3,2468.2,0.61394411]
[1747508076335,14.08693878,2468.3,2468.2,0.22691861]
[1747508076536,12.05186385,2468.0,2467.9,0.48442906]
[1747508076738,20.27616385,2468.0,2467.9,0.48442906]
[1747508076934,22.44695173,2468.0,2467.9,0.48442906]
[1747508078224,20.27616385,2468.0,2467.9,0.48442906]
[1747508078467,20.27616385,2468.0,2467.4,4.82542522]
[1747508078468,4.05211424,2467.9,2467.4,4.82542522]
[1747508079061,4.05211424,2467.9,2467.5,0.22700161]
[1747508079377,4.05221053,2467.8,2467.5,0.22700161]
[1747508079579,0.03426479,2467.7,2467.6,0.22700161]
[1747508079744,4.05249472,2467.7,2467.6,0.61445288]
[1747508081793,12.05249472,2467.7,2467.6,0.61445288]
[1747508082142,12.05249472,2467.7,2467.6,0.38745127]
[1747508082471,4.05284915,2467.4,2467.3,0.48442906]
[1747508082846,4.05284915,2467.4,2467.3,0.71148566]
[1747508083898,4.05284915,2467.4,2467.3,0.61456727]
[1747508084465,4.0527482,2467.5,2467.3,0.61456727]
[1747508085048,4.0527482,2467.5,2467.4,0.38751067]
[1747508087638,11.8497482,2467.5,2467.4,0.38751067]
[1747508088176,11.8497482,2467.5,2467.0,9.03762906]
[1747508088374,4.05291482,2467.4,2467.1,0.90376291]
[1747508088670,4.05305045,2467.3,2467.1,0.90376291]
[1747508088846,4.05293418,2467.4,2467.2,0.2268953]
[1747508089218,4.05301341,2467.3,2467.2,0.2268953]
[1747508089753,4.05301341,2467.3,2467.0,0.7522]
[1747508089942,4.05301341,2467.3,2467.1,1.30922765]
[1747508090134,4.05301341,2467.3,2467.1,1.69642061]
[1747508091059,4.05301341,2467.3,2467.2,0.38719296]
[1747508092058,4.05290969,2467.4,2467.2,0.38719296]
[1747508092366,4.05301341,2467.3,2467.2,0.38719296]
[1747508092522,4.05301341,2467.3,2467.1,1.30922765]
[1747508095638,4.05317769,2467.2,2467.1,1.30922765]
[1747508096046,8.2223,2467.5,2466.9,7.802]
[1747508096246,4.05317769,2467.2,2466.9,7.802]
[1747508096744,4.05317769,2467.2,2467.0,0.61359414]
[1747508097504,4.05334198,2467.1,2467.0,0.61359414]
[1747508097641,4.47864198,2467.1,2467.0,0.38690198]
[1747508097843,13.36608874,2467.1,2467.0,0.38690198]
[1747508098056,13.33182395,2467.1,2467.0,0.38690198]
[1747508098234,12.05383492,2466.8,2466.7,0.48442906]
[1747508098434,19.84883492,2466.8,2466.7,0.48442906]
[1747508099782,4.05416362,2466.6,2466.3,17.503]
[1747508100079,12.0540652,2466.7,2466.3,20.56874489]
[1747508100486,12.0540652,2466.7,2466.4,0.22665507]
[1747508100780,4.05416586,2466.6,2466.4,0.22665507]
[1747508100984,4.05416586,2466.6,2466.5,0.38690289]
[1747508102676,4.0549856,2466.1,2466.0,0.48442906]
[1747508102876,19.8499856,2466.1,2466.0,0.48442906]
[1747508103479,8.0,2466.2,2466.0,0.48442906]
[1747508103664,11.84972976,2466.3,2466.0,0.48442906]
[1747508103857,4.05444243,2466.5,2466.0,1.00276287]
[1747508103858,8.0,2466.4,2466.0,1.00276287]
[1747508104183,7.795,2466.5,2466.1,0.7503]
[1747508104389,14.1038978,2466.8,2466.1,0.7503]
[1747508104390,10.05,2466.8,2466.1,0.7503]
[1747508104552,7.795,2466.7,2466.3,4.05456775]
[1747508104757,7.795,2466.7,2466.4,0.7503]
[1747508104964,4.05392474,2466.8,2466.4,0.7503]
[1747508105170,11.8487415,2466.9,2466.4,5.69068188]
[1747508105374,11.8487415,2466.9,2466.4,4.94038188]
[1747508105552,11.8487415,2466.9,2466.4,0.88596739]
[1747508105553,4.05386406,2466.8,2466.4,0.88596739]
[1747508105754,4.05384351,2466.8,2466.4,4.9403616]
[1747508105954,4.05384351,2466.8,2466.4,0.88596739]
[1747508106466,12.05374329,2466.9,2466.4,4.94042471]
[1747508106671,12.05374329,2466.9,2466.5,0.7503]